Workbook

Sheet INIZIO
B1: Informazioni sul modello
B2: Creare un piano di budget per il marketing e un grafico per categorie in questa cartella di lavoro.
B3: Immettere categorie, quantità e costi nella tabella del foglio di lavoro Piano di budget marketing. I costi dell'evento e il totale complessivo stimato per il marketing vengono calcolati automaticamente.
B4: L'istogramma a colonne raggruppate viene aggiornato automaticamente nel foglio di lavoro Grafico per categorie.
B5: Nota:
B6: Altre istruzioni sono state fornite nella colonna A dei fogli di lavoro PIANO DI BUDGET MARKETING e GRAFICO CATEGORIE. Questo testo è stato nascosto intenzionalmente. Per rimuovere il testo, selezionare la colonna A, quindi selezionare ELIMINA. Per visualizzare/nascondere il testo, selezionare l'opzione di testo delle istruzioni aggiuntive di seguito.
B7: Per altre informazioni sulla tabella, premere MAIUSC e quindi F10 in una tabella, selezionare l'opzione TABELLA, infine selezionare TESTO ALTERNATIVO. Per le tabelle pivot, premere MAIUSC e quindi F10 in una tabella, selezionare OPZIONI TABELLA PIVOT, infine selezionare la scheda TESTO ALTERNATIVO.

Sheet PIANO DI BUDGET MARKETING
B2: PIANO DI BUDGET MARKETING
E3: Il filtro dei dati per filtrare i dati della tabella per categoria primaria si trova in questa cella.
B4: NUMERO DI PARTECIPANTI | D4: 50
B5: COSTI EVENTO | D5: =SUMIF(Dati[Categoria primaria],"Evento",Dati[Subtotale stimato]) -> € 2,500.00
B6: PREZZO EVENTO A PERSONA | D6: =EventCosts/NumberOfAttendees -> € 50.00
B7: TOTALE COMPLESSIVO STIMATO PER MARKETING | D7: =SUMIF(Dati[Categoria primaria],"<>Evento",Dati[Subtotale stimato]) -> € 45,743.00
B8: SUBTOTALE | D8: =SUBTOTAL(109,Dati[Subtotale stimato]) -> € 0.00
B10: Categoria primaria | C10: Categoria secondaria | D10: Quantità prevista | E10: Costo stimato unitario | F10: Subtotale stimato | G10: Note
B11: Ricerca | C11: Tariffe società di ricerca | D11: 2 | E11: € 2,300.00 | F11: =Dati[[#This Row],[Quantità prevista]]*Dati[[#This Row],[Costo stimato unitario]] -> € 4,600.00
B12: Ricerca | C12: Ricerca Web | D12: 1 | E12: € 1,100.00 | F12: =Dati[[#This Row],[Quantità prevista]]*Dati[[#This Row],[Costo stimato unitario]] -> € 1,100.00
B13: Ricerca | C13: Ricerca indipendente | D13: 3 | E13: € 300.00 | F13: =Dati[[#This Row],[Quantità prevista]]*Dati[[#This Row],[Costo stimato unitario]] -> € 900.00
B14: Ricerca | C14: Altre ricerche | D14: 2 | E14: € 250.00 | F14: =Dati[[#This Row],[Quantità prevista]]*Dati[[#This Row],[Costo stimato unitario]] -> € 500.00
B15: Comunicazioni | C15: Brochure promozionali | D15: 5,000 | E15: € 0.15 | F15: =Dati[[#This Row],[Quantità prevista]]*Dati[[#This Row],[Costo stimato unitario]] -> € 750.00
B16: Comunicazioni | C16: Televisione | D16: 5 | E16: € 4,000.00 | F16: =Dati[[#This Row],[Quantità prevista]]*Dati[[#This Row],[Costo stimato unitario]] -> € 20,000.00
B17: Comunicazioni | C17: Radio | D17: 13 | E17: € 350.00 | F17: =Dati[[#This Row],[Quantità prevista]]*Dati[[#This Row],[Costo stimato unitario]] -> € 4,550.00
B18: Comunicazioni | C18: Web | D18: 1 | E18: € 350.00 | F18: =Dati[[#This Row],[Quantità prevista]]*Dati[[#This Row],[Costo stimato unitario]] -> € 350.00
B19: Creazione rete | C19: Creazione rete | F19: =Dati[[#This Row],[Quantità prevista]]*Dati[[#This Row],[Costo stimato unitario]] -> € 0.00
B20: Creazione rete | C20: Iscrizioni | D20: 3 | E20: € 50.00 | F20: =Dati[[#This Row],[Quantità prevista]]*Dati[[#This Row],[Costo stimato unitario]] -> € 150.00
B21: Creazione rete | C21: Affiliazioni | D21: 2 | E21: € 20.00 | F21: =Dati[[#This Row],[Quantità prevista]]*Dati[[#This Row],[Costo stimato unitario]] -> € 40.00
B22: Creazione rete | C22: Abbonamenti | D22: 2 | E22: € 32.00 | F22: =Dati[[#This Row],[Quantità prevista]]*Dati[[#This Row],[Costo stimato unitario]] -> € 64.00
B23: Evento | C23: Numero di partecipanti | D23: 50 | F23: =Dati[[#This Row],[Quantità prevista]]*Dati[[#This Row],[Costo stimato unitario]] -> € 0.00
B24: Evento | C24: Pasti (colazione, pranzo o cena) | F24: =Dati[[#This Row],[Quantità prevista]]*Dati[[#This Row],[Costo stimato unitario]] -> € 0.00
B25: Evento | C25: Cibo | E25: € 23.00 | F25: =Dati[[#This Row],[Quantità prevista]]*Dati[[#This Row],[Costo stimato unitario]] -> € 0.00
B26: Evento | C26: Imposta (10%) | E26: € 2.30 | F26: =Dati[[#This Row],[Quantità prevista]]*Dati[[#This Row],[Costo stimato unitario]] -> € 0.00
B27: Evento | C27: Cibo e bevande gratuiti (20%) | E27: € 5.06 | F27: =Dati[[#This Row],[Quantità prevista]]*Dati[[#This Row],[Costo stimato unitario]] -> € 0.00
B28: Evento | C28: Servizi di noleggio auto | D28: 1 | E28: € 300.00 | F28: =Dati[[#This Row],[Quantità prevista]]*Dati[[#This Row],[Costo stimato unitario]] -> € 300.00
B29: Evento | C29: Intrattenimento 1 | D29: 1 | E29: € 800.00 | F29: =Dati[[#This Row],[Quantità prevista]]*Dati[[#This Row],[Costo stimato unitario]] -> € 800.00
B30: Evento | C30: Intrattenimento 2 | D30: 1 | E30: € 1,200.00 | F30: =Dati[[#This Row],[Quantità prevista]]*Dati[[#This Row],[Costo stimato unitario]] -> € 1,200.00
B31: Evento | C31: Altri servizi | D31: 1 | E31: € 200.00 | F31: =Dati[[#This Row],[Quantità prevista]]*Dati[[#This Row],[Costo stimato unitario]] -> € 200.00
B32: Servizi audiovisivi | C32: Amplificatori di potenza e podio | D32: 1 | E32: € 0.00 | F32: =Dati[[#This Row],[Quantità prevista]]*Dati[[#This Row],[Costo stimato unitario]] -> € 0.00 | G32: Fornito in loco (di solito)
B33: Servizi audiovisivi | C33: Schermo | D33: 1 | E33: € 0.00 | F33: =Dati[[#This Row],[Quantità prevista]]*Dati[[#This Row],[Costo stimato unitario]] -> € 0.00 | G33: Fornito in loco (di solito)
B34: Servizi audiovisivi | C34: Noleggio proiettore dati/video XGA | D34: 1 | E34: € 45.00 | F34: =Dati[[#This Row],[Quantità prevista]]*Dati[[#This Row],[Costo stimato unitario]] -> € 45.00
B35: Servizi audiovisivi | C35: Mouse wireless | D35: 1 | E35: € 12.00 | F35: =Dati[[#This Row],[Quantità prevista]]*Dati[[#This Row],[Costo stimato unitario]] -> € 12.00
B36: Servizi audiovisivi | C36: Prese multiple | D36: 1 | E36: € 0.00 | F36: =Dati[[#This Row],[Quantità prevista]]*Dati[[#This Row],[Costo stimato unitario]] -> € 0.00 | G36: Fornito in loco (di solito)
B37: Servizi audiovisivi | C37: Cavi estensibili | D37: 1 | E37: € 0.00 | F37: =Dati[[#This Row],[Quantità prevista]]*Dati[[#This Row],[Costo stimato unitario]] -> € 0.00 | G37: Fornito in loco (di solito)
B38: Servizi audiovisivi | C38: Microfono Lavalier | D38: 1 | E38: € 0.00 | F38: =Dati[[#This Row],[Quantità prevista]]*Dati[[#This Row],[Costo stimato unitario]] -> € 0.00 | G38: Fornito in loco (di solito)
B39: Servizi audiovisivi | C39: Manodopera e tecnici AV | D39: 1 | E39: € 300.00 | F39: =Dati[[#This Row],[Quantità prevista]]*Dati[[#This Row],[Costo stimato unitario]] -> € 300.00
B40: Servizi audiovisivi | C40: Imposta (8,8%) | E40: € 31.42 | F40: =Dati[[#This Row],[Quantità prevista]]*Dati[[#This Row],[Costo stimato unitario]] -> € 0.00
B41: Costi aggiuntivi | C41: Invito (costi di stampa e affrancatura) | E41: € 834.00 | F41: =Dati[[#This Row],[Quantità prevista]]*Dati[[#This Row],[Costo stimato unitario]] -> € 0.00
B42: Costi aggiuntivi | C42: Registrazione tempi e spese | E42: € 600.00 | F42: =Dati[[#This Row],[Quantità prevista]]*Dati[[#This Row],[Costo stimato unitario]] -> € 0.00
B43: Costi aggiuntivi | C43: Tempi e spese del personale | E43: € 200.00 | F43: =Dati[[#This Row],[Quantità prevista]]*Dati[[#This Row],[Costo stimato unitario]] -> € 0.00 | G43: <Numero di persone in sede>
B44: Costi aggiuntivi | C44: Tempi e spese del testimonial del cliente | E44: € 100.00 | F44: =Dati[[#This Row],[Quantità prevista]]*Dati[[#This Row],[Costo stimato unitario]] -> € 0.00
B45: Omaggi | C45: Omaggio 1 | D45: 25 | E45: € 10.00 | F45: =Dati[[#This Row],[Quantità prevista]]*Dati[[#This Row],[Costo stimato unitario]] -> € 250.00 | G45: <Descrizione omaggi e gadget>
B46: Omaggi | C46: Omaggio 2 | D46: 25 | E46: € 5.00 | F46: =Dati[[#This Row],[Quantità prevista]]*Dati[[#This Row],[Costo stimato unitario]] -> € 125.00 | G46: <Descrizione omaggi e gadget>
B47: Promozioni | C47: Prodotti omaggio | D47: 50 | E47: € 8.00 | F47: =Dati[[#This Row],[Quantità prevista]]*Dati[[#This Row],[Costo stimato unitario]] -> € 400.00
B48: Promozioni | C48: Sconti sul prodotto | D48: 300 | E48: € 3.00 | F48: =Dati[[#This Row],[Quantità prevista]]*Dati[[#This Row],[Costo stimato unitario]] -> € 900.00
B49: Promozioni | C49: Offerte speciali | D49: 200 | E49: € 2.50 | F49: =Dati[[#This Row],[Quantità prevista]]*Dati[[#This Row],[Costo stimato unitario]] -> € 500.00
B50: Pubblicità | C50: Brochure (sviluppo e produzione) | D50: 5,000 | E50: € 0.15 | F50: =Dati[[#This Row],[Quantità prevista]]*Dati[[#This Row],[Costo stimato unitario]] -> € 750.00
B51: Pubblicità | C51: Mailing | D51: 15,000 | E51: € 0.04 | F51: =Dati[[#This Row],[Quantità prevista]]*Dati[[#This Row],[Costo stimato unitario]] -> € 600.00
B52: Pubblicità | C52: Cartoline | D52: 15,000 | E52: € 0.03 | F52: =Dati[[#This Row],[Quantità prevista]]*Dati[[#This Row],[Costo stimato unitario]] -> € 450.00
B53: Pubblicità | C53: Televisione | D53: 2 | E53: € 600.00 | F53: =Dati[[#This Row],[Quantità prevista]]*Dati[[#This Row],[Costo stimato unitario]] -> € 1,200.00
B54: Pubblicità | C54: Radio | D54: 4 | E54: € 300.00 | F54: =Dati[[#This Row],[Quantità prevista]]*Dati[[#This Row],[Costo stimato unitario]] -> € 1,200.00
B55: Pubblicità | C55: Giornali | D55: 6 | E55: € 220.00 | F55: =Dati[[#This Row],[Quantità prevista]]*Dati[[#This Row],[Costo stimato unitario]] -> € 1,320.00
B56: Pubblicità | C56: Cartelloni | D56: 2 | E56: € 556.00 | F56: =Dati[[#This Row],[Quantità prevista]]*Dati[[#This Row],[Costo stimato unitario]] -> € 1,112.00
B57: Pubblicità | C57: Pannelli su autobus | D57: 3 | E57: € 125.00 | F57: =Dati[[#This Row],[Quantità prevista]]*Dati[[#This Row],[Costo stimato unitario]] -> € 375.00
B58: Pubbliche relazioni | C58: Eventi di beneficenza | D58: 3 | E58: € 200.00 | F58: =Dati[[#This Row],[Quantità prevista]]*Dati[[#This Row],[Costo stimato unitario]] -> € 600.00
B59: Pubbliche relazioni | C59: Pubblicità | D59: 4 | E59: € 200.00 | F59: =Dati[[#This Row],[Quantità prevista]]*Dati[[#This Row],[Costo stimato unitario]] -> € 800.00
B60: Pubbliche relazioni | C60: Promozioni dipendenti | D60: 6 | E60: € 200.00 | F60: =Dati[[#This Row],[Quantità prevista]]*Dati[[#This Row],[Costo stimato unitario]] -> € 1,200.00
B61: Pubbliche relazioni | C61: Sponsorizzazioni | D61: 3 | E61: € 200.00 | F61: =Dati[[#This Row],[Quantità prevista]]*Dati[[#This Row],[Costo stimato unitario]] -> € 600.00

Sheet GRAFICO CATEGORIE
B2: PIANO DI BUDGET MARKETING
C4: Categoria primaria
C5: Costi aggiuntivi | D5: Pubblicità | E5: Servizi audiovisivi | F5: Comunicazioni | G5: Evento | H5: Omaggi | I5: Creazione rete | J5: Promozioni | K5: Pubbliche relazioni | L5: Ricerca | M5: Totale complessivo
B6: Subtotale stimato | C6: € 0.00 | D6: € 7,007.00 | E6: € 357.00 | F6: € 25,650.00 | G6: € 2,500.00 | H6: € 375.00 | I6: € 254.00 | J6: € 1,800.00 | K6: € 3,200.00 | L6: € 7,100.00 | M6: € 48,243.00
B8: Il grafico pivot con colonne che mostra le categorie primarie e i relativi subtotali stimati si trova in questa cella.
